Department Family,Entity,Date Paid,Expense Type,Expense Area,Supplier,Transaction Number,Amount (�),Supplier VAT Registration Number
BEIS,Met Office,2022-02-09,11 SERVICES,SERVICES,SIMILARWEBB UK LTD,10486,41259.2,GB174984654
BEIS,Met Office,2022-02-02,11 SERVICES,TECHNOLOGY AND CIO,AMAZON WEB SERVICES INC.,10507,1710.89,N/A
BEIS,Met Office,2022-02-02,11 SERVICES,TECHNOLOGY AND CIO,AMAZON WEB SERVICES INC.,10508,150650.59,N/A
BEIS,Met Office,2022-02-09,07 EQUIPMENT,SERVICES,DATA BUOY INSTRUMENTATION LLC,10509,9845.35,-
BEIS,Met Office,2022-02-02,11 SERVICES,TECHNOLOGY AND CIO,AMAZON WEB SERVICES INC.,10510,15.41,N/A
BEIS,Met Office,2022-02-02,11 SERVICES,TECHNOLOGY AND CIO,AMAZON WEB SERVICES INC.,10513,14911.94,N/A
BEIS,Met Office,2022-02-09,11 SERVICES,PEOPLE,PLURALSIGHT,10514,4873.92,EU826020045
BEIS,Met Office,2022-02-02,11 SERVICES,SERVICES,METOCEAN TELEMATICS LTD,10517,329.03,-
BEIS,Met Office,2022-02-09,08 SOFTWARE LICENCES,TECHNOLOGY AND CIO,"PHOENIX SOFTWARE INTERNATIONAL, INC",10519,6890.57,-
BEIS,Met Office,2022-02-09,PLANT AND EQUIPMENT,PROGRAMMES,COMMUNICATIONS & POWER IND. EUROPE LTD,10529,39425.94,664103850
BEIS,Met Office,2022-02-09,PLANT AND EQUIPMENT,SERVICES,COMMUNICATIONS & POWER IND. EUROPE LTD,10529,39425.94,664103850
BEIS,Met Office,2022-02-16,11 SERVICES,SERVICES,NSSL GLOBAL LTD,10534,51.15,725151948
BEIS,Met Office,2022-02-16,11 SERVICES,SERVICES,NSSL GLOBAL LTD,10535,65.76,725151948
BEIS,Met Office,2022-02-23,11 SERVICES,MARKETS,RIMES,10538,33354.84,-
BEIS,Met Office,2022-02-09,08 SOFTWARE LICENCES,MARKETS,"INTELLOVATIONS, LLC",10541,1524.48,-
BEIS,Met Office,2022-02-09,12 INTERNATIONAL,MARKETS,READACTED PERSONAL DATA,10542,2632.52,-
BEIS,Met Office,2022-02-09,11 SERVICES,SCIENCE,"LINDE GAS ESPANA, S.A.U.",23271,-1272.26,-
BEIS,Met Office,2022-02-16,11 SERVICES,SCIENCE,RIUVARBEL S.L,23378,5158,-
BEIS,Met Office,2022-02-02,11 SERVICES,SERVICES,COLLECTE LOCALISATION SATELLITES (C.L.S.),23382,5626.91,FR95338034390
BEIS,Met Office,2022-02-02,13 MISCELLANEOUS,SERVICES,COLLECTE LOCALISATION SATELLITES (C.L.S.),23383,1573.83,FR95338034390
BEIS,Met Office,2022-02-02,11 SERVICES,SERVICES,COLLECTE LOCALISATION SATELLITES (C.L.S.),23384,8094.75,FR95338034390
BEIS,Met Office,2022-02-02,12 INTERNATIONAL,SERVICES,Icelandic Meteorological Office,23395,41136.09,99733
BEIS,Met Office,2022-02-02,11 SERVICES,SERVICES,"EUTELSAT, S.A.",23397,2908.8,-
BEIS,Met Office,2022-02-02,11 SERVICES,SERVICES,NORWEGIAN METEOROLOGICAL INST,23400,10828.11,NO971274042MVA
BEIS,Met Office,2022-02-09,11 SERVICES,MARKETS,UKRI,23488,9648.8,GB287461957
BEIS,Met Office,2022-02-09,11 SERVICES,SERVICES,Smhi,23489,8673.83,SE202100069601
BEIS,Met Office,2022-02-16,12 INTERNATIONAL,SERVICES,Deutscher Wetterdienst,23490,9344.08,-
BEIS,Met Office,2022-02-09,13 MISCELLANEOUS,MARKETS,ASAM E.V.,23493,90.49,DE201282 629
BEIS,Met Office,2022-02-16,08 SOFTWARE LICENCES,MARKETS,"IBL SOFTWARE ENGINEERING, SPOL S.R.O.",23500,13736.51,SK2020241883
BEIS,Met Office,2022-02-16,08 SOFTWARE LICENCES,MARKETS,"IBL SOFTWARE ENGINEERING, SPOL S.R.O.",23501,597.28,SK2020241883
BEIS,Met Office,2022-02-23,11 SERVICES,SCIENCE,READACTED PERSONAL DATA,23502,6265.13,N/A
BEIS,Met Office,2022-02-02,11 SERVICES,CHIEF FINANCIAL OFFICER,DBS FINANCE RECEIPTS CTS,23508,163.6,888805068
BEIS,Met Office,2022-02-02,11 SERVICES,MARKETS,"EUTELSAT MADERIA, UNIPESSOAL LDA",23519,432.02,PT511283733
BEIS,Met Office,2022-02-02,11 SERVICES,SERVICES,"EUTELSAT MADERIA, UNIPESSOAL LDA",23519,1728.09,PT511283733
BEIS,Met Office,2022-02-23,11 SERVICES,SCIENCE,PRIMARY SCIENCE TEACHING TRUST,23523,23847.76,-
BEIS,Met Office,2022-02-09,10 EQUIPMENT MAINTENANCE,SERVICES,CIMEL ELECTRONIQUE,23531,326.64,FR89662017201
BEIS,Met Office,2022-02-09,11 SERVICES,SCIENCE,MERCATOR OCEAN INTERNATIONAL,23532,83113.5,-
BEIS,Met Office,2022-02-09,11 SERVICES,SERVICES,COLLECTE LOCALISATION SATELLITES (C.L.S.),23533,1395.14,FR95338034390
BEIS,Met Office,2022-02-23,11 SERVICES,CHIEF FINANCIAL OFFICER,EIR,23562,51.08,4736919B
BEIS,Met Office,2022-02-07,13 MISCELLANEOUS,OTHER,CABINET OFFICE - COF LEAD ACCOUNT,446128,180,-
BEIS,Met Office,2022-02-21,11 SERVICES,MARKETS,SCIENCE & TECHNOLOGY FACILITIES COUNCIL,449206,7644.08,287461957
BEIS,Met Office,2022-02-10,11 SERVICES,PROGRAMMES,University Of Leeds,453741,21332.8,613451470
BEIS,Met Office,2022-02-28,11 SERVICES,TECHNOLOGY AND CIO,Microsoft Ltd,460215,-74160,724594615
BEIS,Met Office,2022-02-28,11 SERVICES,TECHNOLOGY AND CIO,Microsoft Ltd,460323,70530.19,724594615
BEIS,Met Office,2022-02-03,13 MISCELLANEOUS,SCIENCE,University Of Oxford,460989,1000,125506730
BEIS,Met Office,2022-02-01,13 MISCELLANEOUS,SCIENCE,University Of Oxford,460990,1000,125506730
BEIS,Met Office,2022-02-03,13 MISCELLANEOUS,SCIENCE,University Of Oxford,461042,2000,125506730
BEIS,Met Office,2022-02-16,11 SERVICES,TECHNOLOGY AND CIO,BAE SYSTEMS APPLIED INTELLIGENCE LIMITED,461355,5280,GB641407169
BEIS,Met Office,2022-02-17,11 SERVICES,TECHNOLOGY AND CIO,BAE SYSTEMS APPLIED INTELLIGENCE LIMITED,462116,13200,GB641407169
BEIS,Met Office,2022-02-01,11 SERVICES,TECHNOLOGY AND CIO,BAE SYSTEMS APPLIED INTELLIGENCE LIMITED,462127,5940,GB641407169
BEIS,Met Office,2022-02-02,11 SERVICES,TECHNOLOGY AND CIO,BAE SYSTEMS APPLIED INTELLIGENCE LIMITED,462289,17822,GB641407169
BEIS,Met Office,2022-02-22,FIXTURE & FITTINGS,CHIEF FINANCIAL OFFICER,THORLUX LIGHTING,462411,-995.08,GB 109 939 440
BEIS,Met Office,2022-02-03,11 SERVICES,OFFICE OF THE CEO,BRYERS LLP,462711,-4365,609635917
BEIS,Met Office,2022-02-21,11 SERVICES,TECHNOLOGY AND CIO,BAE SYSTEMS APPLIED INTELLIGENCE LIMITED,462950,11256,GB641407169
BEIS,Met Office,2022-02-17,11 SERVICES,TECHNOLOGY AND CIO,BAE SYSTEMS APPLIED INTELLIGENCE LIMITED,462951,7590,GB641407169
BEIS,Met Office,2022-02-01,11 SERVICES,TECHNOLOGY AND CIO,BAE SYSTEMS APPLIED INTELLIGENCE LIMITED,462954,-2640,GB641407169
BEIS,Met Office,2022-02-21,11 SERVICES,TECHNOLOGY AND CIO,BAE SYSTEMS APPLIED INTELLIGENCE LIMITED,462955,10787,GB641407169
BEIS,Met Office,2022-02-21,11 SERVICES,TECHNOLOGY AND CIO,BAE SYSTEMS APPLIED INTELLIGENCE LIMITED,462957,12540,GB641407169
BEIS,Met Office,2022-02-02,11 SERVICES,TECHNOLOGY AND CIO,BAE SYSTEMS APPLIED INTELLIGENCE LIMITED,462958,10820.8,GB641407169
BEIS,Met Office,2022-02-21,11 SERVICES,TECHNOLOGY AND CIO,BAE SYSTEMS APPLIED INTELLIGENCE LIMITED,463014,8250,GB641407169
BEIS,Met Office,2022-02-02,11 SERVICES,TECHNOLOGY AND CIO,BAE SYSTEMS APPLIED INTELLIGENCE LIMITED,463032,10415.02,GB641407169
BEIS,Met Office,2022-02-17,11 SERVICES,TECHNOLOGY AND CIO,BAE SYSTEMS APPLIED INTELLIGENCE LIMITED,463033,9603.46,GB641407169
BEIS,Met Office,2022-02-02,11 SERVICES,TECHNOLOGY AND CIO,BAE SYSTEMS APPLIED INTELLIGENCE LIMITED,463034,11091.32,GB641407169
BEIS,Met Office,2022-02-02,11 SERVICES,TECHNOLOGY AND CIO,BAE SYSTEMS APPLIED INTELLIGENCE LIMITED,463085,7504,GB641407169
BEIS,Met Office,2022-02-21,11 SERVICES,TECHNOLOGY AND CIO,BAE SYSTEMS APPLIED INTELLIGENCE LIMITED,463086,2700,GB641407169
BEIS,Met Office,2022-02-02,11 SERVICES,TECHNOLOGY AND CIO,BAE SYSTEMS APPLIED INTELLIGENCE LIMITED,463231,4801.73,GB641407169
BEIS,Met Office,2022-02-22,FIXTURE & FITTINGS,CHIEF FINANCIAL OFFICER,THORLUX LIGHTING,463262,1492.62,GB 109 939 440
BEIS,Met Office,2022-02-10,11 SERVICES,SERVICES,Boc Ltd,463299,19651.91,226556555
BEIS,Met Office,2022-02-01,11 SERVICES,MARKETS,YOUMEUS LTD (TRADING AS VERSITI),463512,57635,888501879
BEIS,Met Office,2022-02-01,07 EQUIPMENT,SCIENCE,PASS (PORTABLE APPLIANCE SAFETY SERVICES) LTD,463588,45,GB779714081
BEIS,Met Office,2022-02-01,07 EQUIPMENT,SCIENCE,PASS (PORTABLE APPLIANCE SAFETY SERVICES) LTD,463588,56966.8,GB779714081
BEIS,Met Office,2022-02-02,11 SERVICES,PEOPLE,EDENRED - CHILDCARE VOUCHERS,463740,-243,649 503 520
BEIS,Met Office,2022-02-02,11 SERVICES,MARKETS,Ibm United Kingdom Ltd,463812,5564.16,107328000
BEIS,Met Office,2022-02-02,11 SERVICES,MARKETS,Ibm United Kingdom Ltd,463821,5564.16,107328000
BEIS,Met Office,2022-02-02,11 SERVICES,PEOPLE,EDENRED - CHILDCARE VOUCHERS,463848,-1394.8,649 503 520
BEIS,Met Office,2022-02-10,11 SERVICES,TECHNOLOGY AND CIO,UK CONNECT LTD,463911,1600,154468983
BEIS,Met Office,2022-02-01,11 SERVICES,PROGRAMMES,FCDO,463978,489.4,888813560
BEIS,Met Office,2022-02-16,11 SERVICES,MARKETS,"IBL SOFTWARE ENGINEERING, SPOL S.R.O.",464049,3844.6,SK2020241883
BEIS,Met Office,2022-02-02,11 SERVICES,MARKETS,Ibm United Kingdom Ltd,464082,-5564.16,107328000
BEIS,Met Office,2022-02-02,11 SERVICES,MARKETS,Ibm United Kingdom Ltd,464083,-5564.16,107328000
BEIS,Met Office,2022-02-07,13 MISCELLANEOUS,OTHER,CABINET OFFICE - COF LEAD ACCOUNT,464091,-180,-
BEIS,Met Office,2022-02-10,11 SERVICES,PEOPLE,THE KNOWLEDGE ACADEMY LIMITED,464118,1600,GB970667487
BEIS,Met Office,2022-02-10,11 SERVICES,PEOPLE,THE KNOWLEDGE ACADEMY LIMITED,464118,1788,GB970667487
BEIS,Met Office,2022-02-09,11 SERVICES,TECHNOLOGY AND CIO,BAE SYSTEMS APPLIED INTELLIGENCE LIMITED,464166,1005,GB641407169
BEIS,Met Office,2022-02-03,11 SERVICES,PEOPLE,RETHINK MENTAL ILLNESS,464187,1450,269 4602 76
BEIS,Met Office,2022-02-07,11 SERVICES,PEOPLE,SOURCE COACHING CONSULTANCY,464200,2680,170422048
BEIS,Met Office,2022-02-07,STOCK,SERVICES,GH ZEAL LTD,464205,0,648929087
BEIS,Met Office,2022-02-07,TRADE CREDITORS,SERVICES,GH ZEAL LTD,464205,5073.15,648929087
BEIS,Met Office,2022-02-07,11 SERVICES,SERVICES,GH ZEAL LTD,464205,17.5,648929087
BEIS,Met Office,2022-02-01,04 CONTRACTORS,PEOPLE,MATRIX SCM LIMITED,464248,288984.46,249 5734 68
BEIS,Met Office,2022-02-02,08 SOFTWARE LICENCES,PEOPLE,CATALYST IT,464251,2000,978169262
BEIS,Met Office,2022-02-02,08 SOFTWARE LICENCES,PEOPLE,CATALYST IT,464252,7100,978169262
BEIS,Met Office,2022-02-01,FIXTURE & FITTINGS,CHIEF FINANCIAL OFFICER,POSTURITE (UK) LTD,464253,748.96,583565114
BEIS,Met Office,2022-02-02,INFORMATION TECHNOLOGY,PROGRAMMES,COMPUTACENTER (UK) LTD,464254,21395.68,490334648
BEIS,Met Office,2022-02-01,12 INTERNATIONAL,MARKETS,FOXSTONES TRAINING AND LEARNING,464257,2950,-
BEIS,Met Office,2022-02-02,11 SERVICES,MARKETS,FCDO,464258,2366.68,888813560
BEIS,Met Office,2022-02-01,11 SERVICES,PROGRAMMES,FCDO,464259,1947.24,888813560
BEIS,Met Office,2022-02-02,13 MISCELLANEOUS,PEOPLE,HEALTH MANAGEMENT LTD,464260,3462.63,792250621
BEIS,Met Office,2022-02-02,11 SERVICES,PROGRAMMES,University Of Reading,464263,77579.6,200012659
BEIS,Met Office,2022-02-01,13 MISCELLANEOUS,SERVICES,DBS FINANCE RECEIPTS CTS,464267,30,888805068
BEIS,Met Office,2022-02-01,13 MISCELLANEOUS,SCIENCE,University Of Oxford,464269,-1000,125506730
BEIS,Met Office,2022-02-01,11 SERVICES,MARKETS,YOUMEUS LTD (TRADING AS VERSITI),464270,-57635,888501879
BEIS,Met Office,2022-02-01,11 SERVICES,MARKETS,YOUMEUS LTD (TRADING AS VERSITI),464271,17415,888501879
BEIS,Met Office,2022-02-02,11 SERVICES,PEOPLE,KYMA MEDIA,464272,32500,-
BEIS,Met Office,2022-02-01,11 SERVICES,SCIENCE,University Of Leeds,464275,25000,613451470
BEIS,Met Office,2022-02-01,11 SERVICES,MARKETS,DJS RESEARCH LIMITED,464276,14250,775718779
BEIS,Met Office,2022-02-01,11 SERVICES,TECHNOLOGY AND CIO,SSE CONTRACTING LTD,464277,10393.84,382894546
BEIS,Met Office,2022-02-04,06 ACCOMMODATION,CHIEF FINANCIAL OFFICER,CARDIFF COMMISSIONING LTD,464278,3220,484190139
BEIS,Met Office,2022-02-01,08 SOFTWARE LICENCES,TECHNOLOGY AND CIO,ZOHO CORPORATION B.V.,464279,1426.5,NL855264263B01
BEIS,Met Office,2022-02-01,13 MISCELLANEOUS,SCIENCE,University Of Oxford,464286,333.34,125506730
BEIS,Met Office,2022-02-03,11 SERVICES,CHIEF FINANCIAL OFFICER,POSTURITE (UK) LTD,464287,372,583565114
BEIS,Met Office,2022-02-03,11 SERVICES,CHIEF FINANCIAL OFFICER,POSTURITE (UK) LTD,464288,50,583565114
BEIS,Met Office,2022-02-02,13 MISCELLANEOUS,SCIENCE,University Of Exeter,464289,1250,142047795
BEIS,Met Office,2022-02-02,11 SERVICES,PROGRAMMES,PERFORMANCE JONES L.L.C.,464290,10000,-
BEIS,Met Office,2022-02-03,11 SERVICES,MARKETS,Bray Leino Ltd,464291,19200,135605525
BEIS,Met Office,2022-02-01,11 SERVICES,PROGRAMMES,University Of Bath,464292,16309,639542122
BEIS,Met Office,2022-02-01,10 EQUIPMENT MAINTENANCE,SERVICES,YOUNG CALIBRATION LIMITED,464293,720,673900720
BEIS,Met Office,2022-02-01,11 SERVICES,SERVICES,YOUNG CALIBRATION LIMITED,464293,15,673900720
BEIS,Met Office,2022-02-07,06 ACCOMMODATION,CHIEF FINANCIAL OFFICER,EDF ENERGY CUSTOMERS PLC,464298,-104061.81,523041202
BEIS,Met Office,2022-02-07,06 ACCOMMODATION,CHIEF FINANCIAL OFFICER,EDF ENERGY CUSTOMERS PLC,464299,104069.12,523041202
BEIS,Met Office,2022-02-07,06 ACCOMMODATION,CHIEF FINANCIAL OFFICER,EDF ENERGY CUSTOMERS PLC,464300,-139745.3,523041202
BEIS,Met Office,2022-02-07,06 ACCOMMODATION,CHIEF FINANCIAL OFFICER,EDF ENERGY CUSTOMERS PLC,464301,139712.71,523041202
BEIS,Met Office,2022-02-23,13 MISCELLANEOUS,SERVICES,MEIHUIZEN INTERNATIONAL,464326,258.58,4450101763
BEIS,Met Office,2022-02-02,11 SERVICES,PEOPLE,EDENRED - CHILDCARE VOUCHERS,464337,12861,649 503 520
BEIS,Met Office,2022-02-03,03 STAFF COSTS T&S,SERVICES,CHARLIE'S TRAVEL LTD,464344,293.83,783848277
BEIS,Met Office,2022-02-03,03 STAFF COSTS T&S,SERVICES,CHARLIE'S TRAVEL LTD,464346,265.96,783848277
BEIS,Met Office,2022-02-02,INFORMATION TECHNOLOGY,TECHNOLOGY AND CIO,COMPUTACENTER (UK) LTD,464347,1554.06,490334648
BEIS,Met Office,2022-02-02,INFORMATION TECHNOLOGY,TECHNOLOGY AND CIO,COMPUTACENTER (UK) LTD,464348,13303.5,490334648
BEIS,Met Office,2022-02-02,INFORMATION TECHNOLOGY,TECHNOLOGY AND CIO,COMPUTACENTER (UK) LTD,464349,29010,490334648
BEIS,Met Office,2022-02-03,11 SERVICES,PROGRAMMES,SAYERS AND PARTNERS LLP,464350,79490.42,996 6059 57
BEIS,Met Office,2022-02-03,11 SERVICES,PROGRAMMES,SAYERS AND PARTNERS LLP,464350,8458,996 6059 57
BEIS,Met Office,2022-02-03,12 INTERNATIONAL,MARKETS,IDEMS INTERNATIONAL COMMUNITY INTEREST CO,464351,50000,-
BEIS,Met Office,2022-02-02,11 SERVICES,CHIEF FINANCIAL OFFICER,LICENCE BUREAU LTD,464352,101,820219467
BEIS,Met Office,2022-02-02,08 SOFTWARE LICENCES,TECHNOLOGY AND CIO,Ibm United Kingdom Ltd,464353,6292.52,107328000
BEIS,Met Office,2022-02-02,03 STAFF COSTS T&S,SERVICES,CHARLIE'S TRAVEL LTD,464354,51.67,783848277
BEIS,Met Office,2022-02-04,11 SERVICES,CHIEF FINANCIAL OFFICER,POSTURITE (UK) LTD,464355,195.89,583565114
BEIS,Met Office,2022-02-04,11 SERVICES,MARKETS,OSBORNE CLARKE LLP,464360,5910,GB138187353
BEIS,Met Office,2022-02-04,11 SERVICES,CHIEF FINANCIAL OFFICER,POSTURITE (UK) LTD,464361,51.66,583565114
BEIS,Met Office,2022-02-04,11 SERVICES,CHIEF FINANCIAL OFFICER,POSTURITE (UK) LTD,464362,46.47,583565114
BEIS,Met Office,2022-02-07,11 SERVICES,PEOPLE,FRANCIS CLARK LLP,464363,850,855910212
BEIS,Met Office,2022-02-02,13 MISCELLANEOUS,CHIEF FINANCIAL OFFICER,EAST ANGLIAN WATER COOLER CO,464364,27.9,676668178
BEIS,Met Office,2022-02-02,11 SERVICES,SERVICES,SOFTWIRE TECHNOLOGY LIMITED,464365,2520,752 1253 57
BEIS,Met Office,2022-02-02,08 SOFTWARE LICENCES,TECHNOLOGY AND CIO,PRESENTATION CARTOGRAPHY LTD,464366,1033,-
BEIS,Met Office,2022-02-02,08 SOFTWARE LICENCES,TECHNOLOGY AND CIO,PRESENTATION CARTOGRAPHY LTD,464367,6819,-
BEIS,Met Office,2022-02-02,08 SOFTWARE LICENCES,TECHNOLOGY AND CIO,PRESENTATION CARTOGRAPHY LTD,464367,26169.33,-
BEIS,Met Office,2022-02-02,08 SOFTWARE LICENCES,TECHNOLOGY AND CIO,PRESENTATION CARTOGRAPHY LTD,464367,7231,-
BEIS,Met Office,2022-02-02,08 SOFTWARE LICENCES,TECHNOLOGY AND CIO,PRESENTATION CARTOGRAPHY LTD,464368,8032,-
BEIS,Met Office,2022-02-02,08 SOFTWARE LICENCES,TECHNOLOGY AND CIO,PRESENTATION CARTOGRAPHY LTD,464368,1937,-
BEIS,Met Office,2022-02-02,11 SERVICES,CHIEF FINANCIAL OFFICER,ALLSTAR BUSINESS SOLUTIONS LTD,464369,2901.38,747880191
BEIS,Met Office,2022-02-07,13 MISCELLANEOUS,PEOPLE,BROADBEAN TECHNOLOGY LTD,464370,391.05,GB184088778
BEIS,Met Office,2022-02-07,13 MISCELLANEOUS,PEOPLE,BROADBEAN TECHNOLOGY LTD,464371,860.31,GB184088778
BEIS,Met Office,2022-02-02,06 ACCOMMODATION,CHIEF FINANCIAL OFFICER,TOP RANK CLEANING SERVICES LTD,464372,963,-
BEIS,Met Office,2022-02-02,03 STAFF COSTS T&S,SERVICES,CHARLIE'S TRAVEL LTD,464373,595.52,783848277
BEIS,Met Office,2022-02-10,11 SERVICES,SERVICES,Boc Ltd,464374,19665.41,226556555
BEIS,Met Office,2022-02-02,11 SERVICES,TECHNOLOGY AND CIO,UKCLOUD LTD,464375,1296.16,172647982
BEIS,Met Office,2022-02-07,13 MISCELLANEOUS,PEOPLE,BROADBEAN TECHNOLOGY LTD,464377,1253.02,GB184088778
BEIS,Met Office,2022-02-03,11 SERVICES,CHIEF FINANCIAL OFFICER,TELEFONICA O2 UK LIMITED,464378,50.14,778603785
BEIS,Met Office,2022-02-04,11 SERVICES,CHIEF FINANCIAL OFFICER,SSE CONTRACTING LTD,464379,1000,382894546
BEIS,Met Office,2022-02-03,13 MISCELLANEOUS,CHIEF FINANCIAL OFFICER,CARDIFF EXECUTIVE CENTRE LTD,464380,10.74,864497378
BEIS,Met Office,2022-02-03,11 SERVICES,PROGRAMMES,JEREMY BENN ASSOCIATES LIMITED,464381,13250,GB 665300941
BEIS,Met Office,2022-02-03,06 ACCOMMODATION,CHIEF FINANCIAL OFFICER,FAIR ISLE ELECTRICITY COMPANY LTD,464382,123.12,774548783
BEIS,Met Office,2022-02-03,11 SERVICES,CHIEF FINANCIAL OFFICER,OCS Group UK Limited,464383,147937.92,GB238034379
BEIS,Met Office,2022-02-02,13 MISCELLANEOUS,SERVICES,PETERS & MAY GLOBAL LOGISTICS LTD,464384,75,995183276
BEIS,Met Office,2022-02-03,11 SERVICES,TECHNOLOGY AND CIO,LRQA LTD,464385,4850,821176647
BEIS,Met Office,2022-02-04,11 SERVICES,MARKETS,WORLDPAY (UK) LTD,464389,32.74,991280207
BEIS,Met Office,2022-02-04,11 SERVICES,MARKETS,WORLDPAY (UK) LTD,464390,450.26,991280207
BEIS,Met Office,2022-02-03,11 SERVICES,OFFICE OF THE CEO,BRYERS LLP,464391,80,609635917
BEIS,Met Office,2022-02-07,11 SERVICES,SERVICES,FLYFORM LTD,464392,57050,237333808
BEIS,Met Office,2022-02-04,11 SERVICES,MARKETS,ULTRA ELECTRONICS LTD NUCLEAR CONTROL SYSTEMS,464393,4926.81,123340754
BEIS,Met Office,2022-02-03,PAYE AND VAT,OTHER,SAYERS AND PARTNERS LLP,464394,0,996 6059 57
BEIS,Met Office,2022-02-03,11 SERVICES,PROGRAMMES,SAYERS AND PARTNERS LLP,464396,14000,996 6059 57
BEIS,Met Office,2022-02-03,13 MISCELLANEOUS,CHIEF FINANCIAL OFFICER,ANTRIM HILLS SPRING WATER CO LTD,464397,27,517173455
BEIS,Met Office,2022-02-03,11 SERVICES,TECHNOLOGY AND CIO,FLYFORM LTD,464398,18905,237333808
BEIS,Met Office,2022-02-07,08 SOFTWARE LICENCES,TECHNOLOGY AND CIO,BOXXE,464399,31268.02,734245248
BEIS,Met Office,2022-02-07,11 SERVICES,CHIEF FINANCIAL OFFICER,MITIE SECURITY LTD,464400,110.88,416706654
BEIS,Met Office,2022-02-10,11 SERVICES,PROGRAMMES,University Of Reading,464401,99868,200012659
BEIS,Met Office,2022-02-03,10 EQUIPMENT MAINTENANCE,SERVICES,ELASTICSEARCH LTD,464402,319.19,155790484
BEIS,Met Office,2022-02-03,08 SOFTWARE LICENCES,TECHNOLOGY AND CIO,GOOGLE IRELAND LTD,464403,42.9,6388047V
BEIS,Met Office,2022-02-02,08 SOFTWARE LICENCES,TECHNOLOGY AND CIO,Ibm United Kingdom Ltd,464404,11427.7,107328000
BEIS,Met Office,2022-02-03,11 SERVICES,CHIEF FINANCIAL OFFICER,APPLE CENTRAL TAXIS,464405,12,449238720
BEIS,Met Office,2022-02-04,05 CONSULTANTS,PROGRAMMES,FLYFORM LTD,464406,63655,237333808
BEIS,Met Office,2022-02-04,11 SERVICES,PROGRAMMES,FLYFORM LTD,464407,2090,237333808
BEIS,Met Office,2022-02-03,11 SERVICES,PROGRAMMES,FLYFORM LTD,464408,5250,237333808
BEIS,Met Office,2022-02-02,11 SERVICES,PROGRAMMES,FLYFORM LTD,464409,6467.5,237333808
BEIS,Met Office,2022-02-02,11 SERVICES,PROGRAMMES,FLYFORM LTD,464409,9950,237333808
BEIS,Met Office,2022-02-02,11 SERVICES,MARKETS,ADOPSTAR,464410,1250,115036848
BEIS,Met Office,2022-02-02,11 SERVICES,CHIEF FINANCIAL OFFICER,MITIE SECURITY LTD,464411,38.58,416706654
BEIS,Met Office,2022-02-02,11 SERVICES,CHIEF FINANCIAL OFFICER,MITIE SECURITY LTD,464412,1408.17,416706654
BEIS,Met Office,2022-02-02,11 SERVICES,CHIEF FINANCIAL OFFICER,MITIE SECURITY LTD,464413,8.25,416706654
BEIS,Met Office,2022-02-02,11 SERVICES,CHIEF FINANCIAL OFFICER,MITIE SECURITY LTD,464414,915.75,416706654
BEIS,Met Office,2022-02-07,11 SERVICES,MARKETS,SPOKE (INTERACTIVE) LTD,464415,700,840156451
BEIS,Met Office,2022-02-03,11 SERVICES,PROGRAMMES,Esri (Uk) Ltd,464416,2145.33,787430791
BEIS,Met Office,2022-02-03,08 SOFTWARE LICENCES,TECHNOLOGY AND CIO,GOOGLE IRELAND LTD,464417,42.99,6388047V
BEIS,Met Office,2022-02-03,11 SERVICES,PROGRAMMES,ALTO AEROSPACE LIMITED,464418,23747.4,275002528
BEIS,Met Office,2022-02-08,11 SERVICES,PROGRAMMES,Esri (Uk) Ltd,464421,1407.67,787430791
BEIS,Met Office,2022-02-02,08 SOFTWARE LICENCES,TECHNOLOGY AND CIO,GOOGLE IRELAND LTD,464422,44.2,6388047V
BEIS,Met Office,2022-02-03,11 SERVICES,PROGRAMMES,University Of Reading,464428,45000,200012659
BEIS,Met Office,2022-02-07,11 SERVICES,PROGRAMMES,ROWE IT LTD,464453,76150,924964394
BEIS,Met Office,2022-02-03,10 EQUIPMENT MAINTENANCE,SERVICES,YOUNG CALIBRATION LIMITED,464454,3250,673900720
BEIS,Met Office,2022-02-03,11 SERVICES,SERVICES,YOUNG CALIBRATION LIMITED,464454,15,673900720
BEIS,Met Office,2022-02-07,11 SERVICES,PROGRAMMES,ROWE IT LTD,464455,57568.75,924964394
BEIS,Met Office,2022-02-03,11 SERVICES,PROGRAMMES,ROWE IT LTD,464456,12000,924964394
BEIS,Met Office,2022-02-07,11 SERVICES,CHIEF FINANCIAL OFFICER,CABINET OFFICE - COF LEAD ACCOUNT,464457,1600,-
BEIS,Met Office,2022-02-03,06 ACCOMMODATION,CHIEF FINANCIAL OFFICER,ABOVE THE REST COMMERCIAL CLEANING LTD,464459,527,166969348
BEIS,Met Office,2022-02-03,06 ACCOMMODATION,CHIEF FINANCIAL OFFICER,ABOVE THE REST COMMERCIAL CLEANING LTD,464459,38,166969348
BEIS,Met Office,2022-02-03,11 SERVICES,PROGRAMMES,ROWE IT LTD,464460,3607.42,924964394
BEIS,Met Office,2022-02-03,11 SERVICES,PROGRAMMES,ROWE IT LTD,464460,7816.09,924964394
BEIS,Met Office,2022-02-03,11 SERVICES,PROGRAMMES,ROWE IT LTD,464460,801.65,924964394
BEIS,Met Office,2022-02-03,11 SERVICES,PROGRAMMES,ROWE IT LTD,464460,7816.09,924964394
BEIS,Met Office,2022-02-03,11 SERVICES,PROGRAMMES,ROWE IT LTD,464461,55420,924964394
BEIS,Met Office,2022-02-03,11 SERVICES,PROGRAMMES,ROWE IT LTD,464462,45036.25,924964394
BEIS,Met Office,2022-02-03,13 MISCELLANEOUS,SERVICES,READACTED PERSONAL DATA,464463,2884,NOTVATREG
BEIS,Met Office,2022-02-03,11 SERVICES,PROGRAMMES,ROWE IT LTD,464464,43523.75,924964394
BEIS,Met Office,2022-02-04,04 CONTRACTORS,PEOPLE,MATRIX SCM LIMITED,464465,325271.71,249 5734 68
BEIS,Met Office,2022-02-07,PLANT AND EQUIPMENT,SERVICES,J DARBYSHIRE & SON LTD,464466,1040,153470085
BEIS,Met Office,2022-02-07,11 SERVICES,TECHNOLOGY AND CIO,AKAMAI TECHNOLOGIES LTD,464474,4921.28,745091237
BEIS,Met Office,2022-02-07,11 SERVICES,TECHNOLOGY AND CIO,AKAMAI TECHNOLOGIES LTD,464474,25836.75,745091237
BEIS,Met Office,2022-02-03,11 SERVICES,PEOPLE,EDENRED I&M (IRS VOUCHERS),464475,31206.9,649 503 520
BEIS,Met Office,2022-02-07,08 SOFTWARE LICENCES,TECHNOLOGY AND CIO,SOFTWAREONE,464476,17713.38,GB 942 5301 43
BEIS,Met Office,2022-02-04,11 SERVICES,CHIEF FINANCIAL OFFICER,ADVANCED BUSINESS SOLUTIONS LTD,464477,1275,927547983
BEIS,Met Office,2022-02-03,11 SERVICES,PEOPLE,ACTIVE LEARNING TEAM LTD,464478,1400,-
BEIS,Met Office,2022-02-04,11 SERVICES,SERVICES,INMARSAT SOLUTIONS (CANADA) INC,464479,204.86,766144223
BEIS,Met Office,2022-02-04,11 SERVICES,SERVICES,INMARSAT SOLUTIONS (CANADA) INC,464480,231.37,766144223
BEIS,Met Office,2022-02-04,11 SERVICES,SERVICES,INMARSAT SOLUTIONS (CANADA) INC,464481,2169.17,766144223
BEIS,Met Office,2022-02-07,06 ACCOMMODATION,CHIEF FINANCIAL OFFICER,EDF ENERGY CUSTOMERS PLC,464482,107659.65,523041202
BEIS,Met Office,2022-02-07,06 ACCOMMODATION,CHIEF FINANCIAL OFFICER,EDF ENERGY CUSTOMERS PLC,464483,396694.03,523041202
BEIS,Met Office,2022-02-07,06 ACCOMMODATION,CHIEF FINANCIAL OFFICER,EDF ENERGY CUSTOMERS PLC,464484,139968.07,523041202
BEIS,Met Office,2022-02-10,CYCLESCHEME,OTHER,EDENRED UK (CYCLESCHEME),464487,-1915.83,649 503 520
BEIS,Met Office,2022-02-07,11 SERVICES,MARKETS,CACI LTD,464518,25729.79,380609841
BEIS,Met Office,2022-02-07,11 SERVICES,TECHNOLOGY AND CIO,WIREFAST LTD,464519,2103.27,749536001
BEIS,Met Office,2022-02-07,11 SERVICES,MARKETS,CACI LTD,464520,89232.05,380609841
BEIS,Met Office,2022-02-07,11 SERVICES,TECHNOLOGY AND CIO,WIREFAST LTD,464521,517.87,749536001
BEIS,Met Office,2022-02-07,11 SERVICES,TECHNOLOGY AND CIO,WIREFAST LTD,464522,1916.31,749536001
BEIS,Met Office,2022-02-10,11 SERVICES,PROGRAMMES,IAME LTD,464528,5250,140304468
BEIS,Met Office,2022-02-09,04 CONTRACTORS,TECHNOLOGY AND CIO,FDM GROUP LIMITED,464529,1080,583540529
BEIS,Met Office,2022-02-23,11 SERVICES,PROGRAMMES,SOCIAL & LOCAL,464531,13666.25,126 9600 12
BEIS,Met Office,2022-02-07,06 ACCOMMODATION,CHIEF FINANCIAL OFFICER,RIVER RIDGE,464542,135.51,176286083
BEIS,Met Office,2022-02-09,08 SOFTWARE LICENCES,PEOPLE,CATALYST IT,464543,2075,978169262
BEIS,Met Office,2022-02-07,06 ACCOMMODATION,CHIEF FINANCIAL OFFICER,SABRELINE SPECIALIST MACHINE TOOL SERVICES,464544,20.83,GN-871-4660-13
BEIS,Met Office,2022-02-07,06 ACCOMMODATION,CHIEF FINANCIAL OFFICER,SABRELINE SPECIALIST MACHINE TOOL SERVICES,464544,490.82,GN-871-4660-13
BEIS,Met Office,2022-02-07,06 ACCOMMODATION,CHIEF FINANCIAL OFFICER,SABRELINE SPECIALIST MACHINE TOOL SERVICES,464544,278.82,GN-871-4660-13
BEIS,Met Office,2022-02-07,06 ACCOMMODATION,CHIEF FINANCIAL OFFICER,SABRELINE SPECIALIST MACHINE TOOL SERVICES,464544,1379.69,GN-871-4660-13
BEIS,Met Office,2022-02-07,06 ACCOMMODATION,CHIEF FINANCIAL OFFICER,SABRELINE SPECIALIST MACHINE TOOL SERVICES,464544,1413,GN-871-4660-13
BEIS,Met Office,2022-02-07,06 ACCOMMODATION,CHIEF FINANCIAL OFFICER,SABRELINE SPECIALIST MACHINE TOOL SERVICES,464544,392.83,GN-871-4660-13
BEIS,Met Office,2022-02-07,06 ACCOMMODATION,CHIEF FINANCIAL OFFICER,SABRELINE SPECIALIST MACHINE TOOL SERVICES,464546,3185.01,GN-871-4660-13
BEIS,Met Office,2022-02-07,13 MISCELLANEOUS,CHIEF FINANCIAL OFFICER,NORSCOTT VENDING SERVICES LTD,464547,288.4,751402071
BEIS,Met Office,2022-02-07,06 ACCOMMODATION,CHIEF FINANCIAL OFFICER,TENNIE FACILITIES PROPERTY MANAGEMENT LTD,464550,165.72,982055803
BEIS,Met Office,2022-02-07,11 SERVICES,SERVICES,MIRRHA LIMITED,464555,1000,-
BEIS,Met Office,2022-02-07,06 ACCOMMODATION,CHIEF FINANCIAL OFFICER,POWER NI ENERGY LTD,464558,696.18,617518142
BEIS,Met Office,2022-02-10,11 SERVICES,CHIEF FINANCIAL OFFICER,POSTURITE (UK) LTD,464565,194.68,583565114
BEIS,Met Office,2022-02-09,13 MISCELLANEOUS,SCIENCE,AB MULTIMEDIA LTD,464566,60,849333502
BEIS,Met Office,2022-02-08,08 SOFTWARE LICENCES,PEOPLE,CATALYST IT,464567,2150,978169262
BEIS,Met Office,2022-02-10,CYCLESCHEME,OTHER,EDENRED UK (CYCLESCHEME),464568,3942.38,649 503 520
BEIS,Met Office,2022-02-09,05 CONSULTANTS,OFFICE OF THE CEO,THE LEGAL DIRECTOR,464569,4870,899 338941
BEIS,Met Office,2022-02-09,06 ACCOMMODATION,CHIEF FINANCIAL OFFICER,READACTED PERSONAL DATA,464570,2056,300411928
BEIS,Met Office,2022-02-09,06 ACCOMMODATION,CHIEF FINANCIAL OFFICER,READACTED PERSONAL DATA,464571,2750,300411928
BEIS,Met Office,2022-02-08,13 MISCELLANEOUS,SCIENCE,University Of Reading,464575,333.33,200012659
BEIS,Met Office,2022-02-09,04 CONTRACTORS,TECHNOLOGY AND CIO,FDM GROUP LIMITED,464576,4590,583540529
BEIS,Met Office,2022-02-14,11 SERVICES,PEOPLE,THE MYERS BRIGGS COMPANY LTD,464578,513.75,490808231
BEIS,Met Office,2022-02-08,03 STAFF COSTS T&S,CHIEF FINANCIAL OFFICER,ENTERPRISE RENT A CAR UK LTD,464579,1123.95,215557314
BEIS,Met Office,2022-02-08,13 MISCELLANEOUS,SCIENCE,BOB'S MACHINE SHOP,464580,1900,-
BEIS,Met Office,2022-02-08,13 MISCELLANEOUS,SCIENCE,BOB'S MACHINE SHOP,464582,100,-
BEIS,Met Office,2022-02-09,11 SERVICES,MARKETS,WORLDPAY (UK) LTD,464605,318.33,991280207
BEIS,Met Office,2022-02-08,11 SERVICES,CHIEF FINANCIAL OFFICER,BT CONFERENCING,464606,119.27,245719348
BEIS,Met Office,2022-02-09,11 SERVICES,CHIEF FINANCIAL OFFICER,JERSEY TELECOM,464607,1284.32,NOTVATREG
BEIS,Met Office,2022-02-08,06 ACCOMMODATION,CHIEF FINANCIAL OFFICER,CALOR GAS LIMITED,464608,709.42,207610984
BEIS,Met Office,2022-02-08,06 ACCOMMODATION,CHIEF FINANCIAL OFFICER,South West Water Ltd,464609,869.92,236873674
BEIS,Met Office,2022-02-11,13 MISCELLANEOUS,PEOPLE,HEALTH MANAGEMENT LTD,464610,101.61,792250621
BEIS,Met Office,2022-02-10,06 ACCOMMODATION,CHIEF FINANCIAL OFFICER,Biffa Waste Services Ltd,464611,364.5,537911627
BEIS,Met Office,2022-02-09,11 SERVICES,PROGRAMMES,University Of Cambridge,464612,10000,214222124
BEIS,Met Office,2022-02-08,06 ACCOMMODATION,CHIEF FINANCIAL OFFICER,READACTED PERSONAL DATA,464613,4500,N/A
BEIS,Met Office,2022-02-08,13 MISCELLANEOUS,SERVICES,IMAGETEK SYSTEMS LTD,464614,1391.04,GB586331424
BEIS,Met Office,2022-02-08,06 ACCOMMODATION,CHIEF FINANCIAL OFFICER,Mitie Landscapes Ltd,464615,5904.75,GB 416 706 654
BEIS,Met Office,2022-02-09,11 SERVICES,PROGRAMMES,University Of Reading,464616,56401,200012659
BEIS,Met Office,2022-02-10,13 MISCELLANEOUS,PROGRAMMES,JOHN WILEY & SONS LTD,464617,6600,376766987
BEIS,Met Office,2022-02-16,06 ACCOMMODATION,CHIEF FINANCIAL OFFICER,JAMES & MARCIA BENJAMIN,464618,520,-
BEIS,Met Office,2022-02-10,11 SERVICES,SERVICES,ADAM PHONES LTD,464625,176.7,538877093
BEIS,Met Office,2022-02-09,06 ACCOMMODATION,CHIEF FINANCIAL OFFICER,SAFESTORE LTD,464626,2815.28,722887607
BEIS,Met Office,2022-02-10,11 SERVICES,PROGRAMMES,FCDO,464627,144.82,888813560
BEIS,Met Office,2022-02-10,11 SERVICES,PROGRAMMES,FCDO,464627,1362.23,888813560
BEIS,Met Office,2022-02-08,10 EQUIPMENT MAINTENANCE,TECHNOLOGY AND CIO,ORACLE CORPORATION UK LTD,464629,4842.24,391313073
BEIS,Met Office,2022-02-11,11 SERVICES,CHIEF FINANCIAL OFFICER,POSTURITE (UK) LTD,464631,166.13,583565114
BEIS,Met Office,2022-02-11,11 SERVICES,CHIEF FINANCIAL OFFICER,POSTURITE (UK) LTD,464632,704.94,583565114
BEIS,Met Office,2022-02-09,11 SERVICES,SCIENCE,University Of Reading,464652,245,200012659
BEIS,Met Office,2022-02-11,11 SERVICES,PROGRAMMES,BJSS LIMITED,464653,14814,613295452
BEIS,Met Office,2022-02-21,11 SERVICES,MARKETS,ACCELERATION EMARKETING,464654,2500,848940776
BEIS,Met Office,2022-02-09,11 SERVICES,CHIEF FINANCIAL OFFICER,GB GROUP PLC,464655,599.94,539716218
BEIS,Met Office,2022-02-10,11 SERVICES,PROGRAMMES,University Of Reading,464656,-99868,200012659
BEIS,Met Office,2022-02-09,03 STAFF COSTS T&S,SERVICES,AIRPORT CAR RENTALS LTD,464657,320,-
BEIS,Met Office,2022-02-10,11 SERVICES,PROGRAMMES,University Of Reading,464658,33289.33,200012659
BEIS,Met Office,2022-02-11,11 SERVICES,SERVICES,UK CENTRE FOR ECOLOGY & HYDROLOGY (UKCEH),464659,3000,336940192
BEIS,Met Office,2022-02-09,13 MISCELLANEOUS,SERVICES,Royal Meteorological Society,464660,33.2,-
BEIS,Met Office,2022-02-09,10 EQUIPMENT MAINTENANCE,SERVICES,R S Aqua Ltd,464661,1720,370059760
BEIS,Met Office,2022-02-09,13 MISCELLANEOUS,SERVICES,R S Aqua Ltd,464661,90,370059760
BEIS,Met Office,2022-02-15,13 MISCELLANEOUS,SCIENCE,University Of Hertfordshire,464670,1000,539959672
BEIS,Met Office,2022-02-09,11 SERVICES,PROGRAMMES,SILICON REEF LTD,464671,61370,GB 254 7458 79
BEIS,Met Office,2022-02-14,06 ACCOMMODATION,CHIEF FINANCIAL OFFICER,Scottish Government,464672,12684.12,888842551
BEIS,Met Office,2022-02-10,11 SERVICES,CHIEF FINANCIAL OFFICER,SURE SOUTH ATLANTIC LTD (ST HELENA),464674,1580.52,30005
BEIS,Met Office,2022-02-10,11 SERVICES,CHIEF FINANCIAL OFFICER,GAMMA TELECOM LTD,464675,575.23,823820344
BEIS,Met Office,2022-02-10,11 SERVICES,CHIEF FINANCIAL OFFICER,GAMMA TELECOM LTD,464675,27342.76,823820344
BEIS,Met Office,2022-02-14,11 SERVICES,PROGRAMMES,GAMMA TELECOM LTD,464676,4053.71,823820344
BEIS,Met Office,2022-02-14,11 SERVICES,MARKETS,UKRI,464677,2870.19,GB287461957
BEIS,Met Office,2022-02-10,11 SERVICES,CHIEF FINANCIAL OFFICER,ANVIL MOBILE LIMITED,464678,82.6,981686175
BEIS,Met Office,2022-02-10,11 SERVICES,CHIEF FINANCIAL OFFICER,ANVIL MOBILE LIMITED,464678,98.6,981686175
BEIS,Met Office,2022-02-10,11 SERVICES,CHIEF FINANCIAL OFFICER,ANVIL MOBILE LIMITED,464678,111.3,981686175
BEIS,Met Office,2022-02-10,11 SERVICES,CHIEF FINANCIAL OFFICER,ANVIL MOBILE LIMITED,464678,34.85,981686175
BEIS,Met Office,2022-02-10,11 SERVICES,CHIEF FINANCIAL OFFICER,ANVIL MOBILE LIMITED,464678,43.6,981686175
BEIS,Met Office,2022-02-10,06 ACCOMMODATION,CHIEF FINANCIAL OFFICER,MOUNT CHARLES GROUP LTD,464696,533.67,517116274
BEIS,Met Office,2022-02-11,11 SERVICES,PEOPLE,READACTED PERSONAL DATA,464697,469.5,143043312
BEIS,Met Office,2022-02-17,11 SERVICES,PEOPLE,READACTED PERSONAL DATA,464698,17869.5,143043312
BEIS,Met Office,2022-02-10,06 ACCOMMODATION,CHIEF FINANCIAL OFFICER,South West Water Ltd,464700,3623.65,236873674
BEIS,Met Office,2022-02-10,06 ACCOMMODATION,CHIEF FINANCIAL OFFICER,CORONA ENERGY LTD,464701,1044.93,577704800
BEIS,Met Office,2022-02-10,06 ACCOMMODATION,CHIEF FINANCIAL OFFICER,CORONA ENERGY LTD,464702,18520.4,577704800
BEIS,Met Office,2022-02-15,11 SERVICES,CHIEF FINANCIAL OFFICER,TELEFONICA O2 UK LIMITED,464703,7369.15,778603785
BEIS,Met Office,2022-02-11,13 MISCELLANEOUS,SCIENCE,Imperial College,464704,333,649926678
BEIS,Met Office,2022-02-10,08 SOFTWARE LICENCES,PROGRAMMES,University Of Southampton,464705,2100,568630414
BEIS,Met Office,2022-02-14,STOCK,SERVICES,BRISTOL INDUSTRIAL & RESEARCH ASSOC LTD,464706,0,140651987
BEIS,Met Office,2022-02-14,TRADE CREDITORS,SERVICES,BRISTOL INDUSTRIAL & RESEARCH ASSOC LTD,464706,344,140651987
BEIS,Met Office,2022-02-14,11 SERVICES,SERVICES,BRISTOL INDUSTRIAL & RESEARCH ASSOC LTD,464706,49,140651987
BEIS,Met Office,2022-02-10,11 SERVICES,CHIEF FINANCIAL OFFICER,MAWASEM LTD,464707,0,197694731
BEIS,Met Office,2022-02-10,11 SERVICES,CHIEF FINANCIAL OFFICER,MAWASEM LTD,464707,27292.19,197694731
BEIS,Met Office,2022-02-14,04 CONTRACTORS,PEOPLE,MATRIX SCM LIMITED,464708,296699.07,249 5734 68
BEIS,Met Office,2022-02-11,11 SERVICES,PROGRAMMES,University College London,464709,77284.43,524371168
BEIS,Met Office,2022-02-10,13 MISCELLANEOUS,SCIENCE,University Of Exeter,464710,1000,142047795
BEIS,Met Office,2022-02-11,11 SERVICES,SCIENCE,University Of Exeter,464711,12500,142047795
BEIS,Met Office,2022-02-11,11 SERVICES,SERVICES,SOFTWIRE TECHNOLOGY LIMITED,464712,19880,752 1253 57
BEIS,Met Office,2022-02-14,13 MISCELLANEOUS,PROGRAMMES,JOHN WILEY & SONS LTD,464716,2550,376766987
BEIS,Met Office,2022-02-14,INFORMATION TECHNOLOGY,TECHNOLOGY AND CIO,COMPUTACENTER (UK) LTD,464717,5897.7,490334648
BEIS,Met Office,2022-02-11,08 SOFTWARE LICENCES,TECHNOLOGY AND CIO,DAISY CORPORATE SERVICES TRADING LIMITED,464718,31890,722471355
BEIS,Met Office,2022-02-11,06 ACCOMMODATION,MARKETS,Trinity House,464720,1508.88,243120414
BEIS,Met Office,2022-02-11,06 ACCOMMODATION,MARKETS,Trinity House,464720,25.14,243120414
BEIS,Met Office,2022-02-14,11 SERVICES,PROGRAMMES,KYMA MEDIA,464721,12500,-
BEIS,Met Office,2022-02-14,11 SERVICES,PEOPLE,ADJUST,464753,595,-
BEIS,Met Office,2022-02-14,07 EQUIPMENT,SERVICES,Hydrosphere Uk Limited,464754,6000,641275549
BEIS,Met Office,2022-02-14,13 MISCELLANEOUS,SERVICES,Hydrosphere Uk Limited,464754,15,641275549
BEIS,Met Office,2022-02-15,11 SERVICES,MARKETS,BJSS LIMITED,464755,41800,613295452
BEIS,Met Office,2022-02-14,11 SERVICES,MARKETS,DECOM NORTH SEA,464756,1197,986674743
BEIS,Met Office,2022-02-15,07 EQUIPMENT,SERVICES,Environmental Measurements Ltd,464757,70,348513154
BEIS,Met Office,2022-02-15,07 EQUIPMENT,SERVICES,Environmental Measurements Ltd,464757,2628,348513154
BEIS,Met Office,2022-02-15,07 EQUIPMENT,SERVICES,Environmental Measurements Ltd,464757,3960,348513154
BEIS,Met Office,2022-02-17,11 SERVICES,MARKETS,JCT Ltd,464758,1258,714 3761 44
BEIS,Met Office,2022-02-14,11 SERVICES,SERVICES,CLOUDREACH EUROPE LIMITED,464759,7300,978187168
BEIS,Met Office,2022-02-14,11 SERVICES,TECHNOLOGY AND CIO,CLOUDREACH EUROPE LIMITED,464760,5150,978187168
BEIS,Met Office,2022-02-14,13 MISCELLANEOUS,MARKETS,PARLIAMENTARY & SCIENTIFIC COMMITTEE,464761,396,-
BEIS,Met Office,2022-02-14,11 SERVICES,MARKETS,PARLIAMENTARY & SCIENTIFIC COMMITTEE,464762,250,-
BEIS,Met Office,2022-02-15,11 SERVICES,PROGRAMMES,UK CENTRE FOR ECOLOGY & HYDROLOGY (UKCEH),464763,35939.67,336940192
BEIS,Met Office,2022-02-14,08 SOFTWARE LICENCES,PROGRAMMES,Esri (Uk) Ltd,464764,1375.2,787430791
BEIS,Met Office,2022-02-14,13 MISCELLANEOUS,CHIEF FINANCIAL OFFICER,University Of Reading,464778,3.53,200012659
BEIS,Met Office,2022-02-14,11 SERVICES,CHIEF FINANCIAL OFFICER,POSTURITE (UK) LTD,464786,50,583565114
BEIS,Met Office,2022-02-14,06 ACCOMMODATION,CHIEF FINANCIAL OFFICER,BUSINESS SUPPORT CENTRE LTD,464787,62.47,927365208
BEIS,Met Office,2022-02-15,13 MISCELLANEOUS,SCIENCE,University Of Reading,464788,2368,200012659
BEIS,Met Office,2022-02-14,11 SERVICES,SERVICES,BUSINESS SUPPORT CENTRE LTD,464789,87,927365208
BEIS,Met Office,2022-02-14,12 INTERNATIONAL,MARKETS,MYACORN LTD,464792,100000,-
BEIS,Met Office,2022-02-17,11 SERVICES,PEOPLE,NLA MEDIA ACCESS LTD,464795,8992.87,661865215
BEIS,Met Office,2022-02-17,11 SERVICES,PEOPLE,NLA MEDIA ACCESS LTD,464796,899.29,661865215
BEIS,Met Office,2022-02-15,11 SERVICES,PEOPLE,ACTIVE LEARNING TEAM LTD,464798,2800,-
BEIS,Met Office,2022-02-17,PAYE AND VAT,OTHER,CALOR GAS LIMITED,464799,-1.71,207610984
BEIS,Met Office,2022-02-17,06 ACCOMMODATION,CHIEF FINANCIAL OFFICER,CALOR GAS LIMITED,464799,-34.25,207610984
BEIS,Met Office,2022-02-16,11 SERVICES,PROGRAMMES,BJSS LIMITED,464802,16460,613295452
BEIS,Met Office,2022-02-14,03 STAFF COSTS T&S,CHIEF FINANCIAL OFFICER,ENTERPRISE RENT A CAR UK LTD,464803,61.68,215557314
BEIS,Met Office,2022-02-16,06 ACCOMMODATION,CHIEF FINANCIAL OFFICER,EDF ENERGY CUSTOMERS PLC,464804,8591.86,523041202
BEIS,Met Office,2022-02-16,INFORMATION TECHNOLOGY,PROGRAMMES,COMPUTACENTER (UK) LTD,464815,17020.64,490334648
BEIS,Met Office,2022-02-15,13 MISCELLANEOUS,CHIEF FINANCIAL OFFICER,BANNER GROUP LIMITED,464816,24.33,GB391085740
BEIS,Met Office,2022-02-14,07 EQUIPMENT,TECHNOLOGY AND CIO,COMPUTACENTER (UK) LTD,464817,9881.9,490334648
BEIS,Met Office,2022-02-17,11 SERVICES,TECHNOLOGY AND CIO,BAE SYSTEMS APPLIED INTELLIGENCE LIMITED,464819,-13200,GB641407169
BEIS,Met Office,2022-02-17,11 SERVICES,MARKETS,AIRLINES UK-THE ASSOCIATION OF UK AIRLINES,464820,1000,GB802641559
BEIS,Met Office,2022-02-17,11 SERVICES,TECHNOLOGY AND CIO,BAE SYSTEMS APPLIED INTELLIGENCE LIMITED,464821,7920,GB641407169
BEIS,Met Office,2022-02-15,03 STAFF COSTS T&S,CHIEF FINANCIAL OFFICER,ENTERPRISE RENT A CAR UK LTD,464823,1441.85,215557314
BEIS,Met Office,2022-02-16,11 SERVICES,PEOPLE,THE STRENGTHS PEOPLE LTD,464824,2000,206868488
BEIS,Met Office,2022-02-16,11 SERVICES,PEOPLE,THE STRENGTHS PEOPLE LTD,464824,2100,206868488
BEIS,Met Office,2022-02-16,11 SERVICES,PEOPLE,THE STRENGTHS PEOPLE LTD,464824,900,206868488
BEIS,Met Office,2022-02-16,11 SERVICES,PEOPLE,THE STRENGTHS PEOPLE LTD,464824,148.6,206868488
BEIS,Met Office,2022-02-16,11 SERVICES,CHIEF FINANCIAL OFFICER,GIBRALTAR NYNEX COMMUNICATIONS LTD,464825,702,NOVAT
BEIS,Met Office,2022-02-15,13 MISCELLANEOUS,CHIEF FINANCIAL OFFICER,HEALIX INSURANCE SERVICES LTD,464826,10391.24,-
BEIS,Met Office,2022-02-15,06 ACCOMMODATION,MARKETS,R C PERRY,464827,500,-
BEIS,Met Office,2022-02-15,13 MISCELLANEOUS,CHIEF FINANCIAL OFFICER,HEALIX INTERNATIONAL,464828,2777.55,127632909
BEIS,Met Office,2022-02-15,06 ACCOMMODATION,CHIEF FINANCIAL OFFICER,READACTED PERSONAL DATA,464829,960,-
BEIS,Met Office,2022-02-15,06 ACCOMMODATION,CHIEF FINANCIAL OFFICER,RIVEROAK MSE LIMITED,464831,2049.19,326 084 707
BEIS,Met Office,2022-02-15,06 ACCOMMODATION,CHIEF FINANCIAL OFFICER,READACTED PERSONAL DATA,464832,2253.65,-
BEIS,Met Office,2022-02-15,06 ACCOMMODATION,MARKETS,EGREMONT RANGERS ARLFC,464833,250,-
BEIS,Met Office,2022-02-15,06 ACCOMMODATION,MARKETS,EGREMONT RANGERS ARLFC,464833,35,-
BEIS,Met Office,2022-02-15,06 ACCOMMODATION,MARKETS,RESPECT CREMATORIA LTD,464834,200,-
BEIS,Met Office,2022-02-15,06 ACCOMMODATION,MARKETS,RESPECT CREMATORIA LTD,464834,35,-
BEIS,Met Office,2022-02-15,06 ACCOMMODATION,MARKETS,WILLIAM PRENTICE,464835,400,-
BEIS,Met Office,2022-02-15,06 ACCOMMODATION,CHIEF FINANCIAL OFFICER,CORBETT FARMS LTD,464836,100,133425301
BEIS,Met Office,2022-02-15,06 ACCOMMODATION,CHIEF FINANCIAL OFFICER,READACTED PERSONAL DATA,464837,7020.15,619055736
BEIS,Met Office,2022-02-15,PAYE AND VAT,OTHER,PETERS & MAY GLOBAL LOGISTICS LTD,464839,0,995183276
BEIS,Met Office,2022-02-16,11 SERVICES,MARKETS,Bray Leino Ltd,464840,13250,135605525
BEIS,Met Office,2022-02-15,10 EQUIPMENT MAINTENANCE,TECHNOLOGY AND CIO,ORACLE CORPORATION UK LTD,464841,24492.07,391313073
BEIS,Met Office,2022-02-16,11 SERVICES,OTHER,METRIKUS LIMITED,464875,1454.17,321 8772 02
BEIS,Met Office,2022-02-18,11 SERVICES,SCIENCE,University Of Leeds,464876,83333.25,613451470
BEIS,Met Office,2022-02-21,11 SERVICES,CHIEF FINANCIAL OFFICER,POSTURITE (UK) LTD,464877,50,583565114
BEIS,Met Office,2022-02-17,11 SERVICES,PROGRAMMES,"CHANNEL FUEL LTD,",464879,6000,GB307738002
BEIS,Met Office,2022-02-18,06 ACCOMMODATION,CHIEF FINANCIAL OFFICER,Wealden District Council,464881,1322.35,210898561
BEIS,Met Office,2022-02-16,06 ACCOMMODATION,CHIEF FINANCIAL OFFICER,POD POINT,464882,1650,278743455
BEIS,Met Office,2022-02-23,12 INTERNATIONAL,MARKETS,MACITECHSY SOLUTIONS,464884,320,-
BEIS,Met Office,2022-02-23,12 INTERNATIONAL,MARKETS,MACITECHSY SOLUTIONS,464884,320,-
BEIS,Met Office,2022-02-21,11 SERVICES,MARKETS,PAUL WATKISS ASSOCIATES LTD,464913,15575,869587641
BEIS,Met Office,2022-02-21,11 SERVICES,CHIEF FINANCIAL OFFICER,POSTURITE (UK) LTD,464914,50,583565114
BEIS,Met Office,2022-02-16,07 EQUIPMENT,TECHNOLOGY AND CIO,COMPUTACENTER (UK) LTD,464915,1447.92,490334648
BEIS,Met Office,2022-02-17,11 SERVICES,TECHNOLOGY AND CIO,BAE SYSTEMS APPLIED INTELLIGENCE LIMITED,464916,-9603.46,GB641407169
BEIS,Met Office,2022-02-17,11 SERVICES,TECHNOLOGY AND CIO,BAE SYSTEMS APPLIED INTELLIGENCE LIMITED,464917,-7590,GB641407169
BEIS,Met Office,2022-02-18,11 SERVICES,PROGRAMMES,UKRI,464918,17976,GB287461957
BEIS,Met Office,2022-02-18,11 SERVICES,PROGRAMMES,SCIENCE & TECHNOLOGY FACILITIES COUNCIL,464919,12500,287461957
BEIS,Met Office,2022-02-24,11 SERVICES,MARKETS,SCIENCE & TECHNOLOGY FACILITIES COUNCIL,464920,64875,287461957
BEIS,Met Office,2022-02-17,11 SERVICES,TECHNOLOGY AND CIO,BAE SYSTEMS APPLIED INTELLIGENCE LIMITED,464921,2640,GB641407169
BEIS,Met Office,2022-02-28,11 SERVICES,PEOPLE,EDENRED - CHILDCARE VOUCHERS,464923,114,649 503 520
BEIS,Met Office,2022-02-21,08 SOFTWARE LICENCES,TECHNOLOGY AND CIO,CLEARVISION (CM) LIMITED,464924,21090,881364801
BEIS,Met Office,2022-02-17,11 SERVICES,MARKETS,CULVERWELL ASSOCIATES LTD,464925,17500,386 6119 65
BEIS,Met Office,2022-02-21,11 SERVICES,CHIEF FINANCIAL OFFICER,INTEROUTE COMMUNICATIONS LIMITED,464926,-1606.62,832 7071 39
BEIS,Met Office,2022-02-17,11 SERVICES,CHIEF FINANCIAL OFFICER,SURE SOUTH ATLANTIC LTD,464927,1244.34,NOVATREG
BEIS,Met Office,2022-02-21,11 SERVICES,CHIEF FINANCIAL OFFICER,INTEROUTE COMMUNICATIONS LIMITED,464928,10648.39,832 7071 39
BEIS,Met Office,2022-02-28,11 SERVICES,PEOPLE,EDENRED - CHILDCARE VOUCHERS,464931,-100,649 503 520
BEIS,Met Office,2022-02-28,11 SERVICES,PEOPLE,EDENRED - CHILDCARE VOUCHERS,464932,-385,649 503 520
BEIS,Met Office,2022-02-28,11 SERVICES,PEOPLE,EDENRED - CHILDCARE VOUCHERS,464933,-143,649 503 520
BEIS,Met Office,2022-02-28,11 SERVICES,PEOPLE,EDENRED - CHILDCARE VOUCHERS,464934,-133,649 503 520
BEIS,Met Office,2022-02-28,11 SERVICES,PEOPLE,EDENRED - CHILDCARE VOUCHERS,464935,-385,649 503 520
BEIS,Met Office,2022-02-28,11 SERVICES,PEOPLE,EDENRED - CHILDCARE VOUCHERS,464938,-148,649 503 520
BEIS,Met Office,2022-02-28,11 SERVICES,PEOPLE,EDENRED - CHILDCARE VOUCHERS,464939,-100,649 503 520
BEIS,Met Office,2022-02-28,11 SERVICES,PEOPLE,EDENRED - CHILDCARE VOUCHERS,464940,-10,649 503 520
BEIS,Met Office,2022-02-28,11 SERVICES,PEOPLE,EDENRED - CHILDCARE VOUCHERS,464941,-95,649 503 520
BEIS,Met Office,2022-02-28,11 SERVICES,PEOPLE,EDENRED - CHILDCARE VOUCHERS,464942,-50,649 503 520
BEIS,Met Office,2022-02-21,13 MISCELLANEOUS,SCIENCE,University Of Reading,464944,1200,200012659
BEIS,Met Office,2022-02-21,11 SERVICES,PROGRAMMES,Landmark Information Group Ltd,464945,14250,634509735
BEIS,Met Office,2022-02-23,13 MISCELLANEOUS,MARKETS,LHR BUSINESS SUPPORT CENTRE LTD,464946,150,927365404
BEIS,Met Office,2022-02-21,11 SERVICES,SERVICES,Landmark Information Group Ltd,464947,172320,634509735
BEIS,Met Office,2022-02-17,06 ACCOMMODATION,CHIEF FINANCIAL OFFICER,CBRE MANAGED SERVICES LTD,464949,116.14,853936883
BEIS,Met Office,2022-02-17,06 ACCOMMODATION,CHIEF FINANCIAL OFFICER,CBRE MANAGED SERVICES LTD,464950,27079.82,853936883
BEIS,Met Office,2022-02-18,13 MISCELLANEOUS,SCIENCE,JOHN WILEY & SONS LTD,464951,3100,376766987
BEIS,Met Office,2022-02-18,13 MISCELLANEOUS,PROGRAMMES,JOHN WILEY & SONS LTD,464952,2300,376766987
BEIS,Met Office,2022-02-21,11 SERVICES,SERVICES,Landmark Information Group Ltd,464953,27390,634509735
BEIS,Met Office,2022-02-21,13 MISCELLANEOUS,OFFICE OF THE CEO,DILIGENT BOARDBOOKS LIMITED,464963,265,929451011
BEIS,Met Office,2022-02-17,08 SOFTWARE LICENCES,CHIEF FINANCIAL OFFICER,LOGICALIS UK Limited,464964,14832.15,864475392
BEIS,Met Office,2022-02-17,08 SOFTWARE LICENCES,CHIEF FINANCIAL OFFICER,LOGICALIS UK Limited,464964,1547.01,864475392
BEIS,Met Office,2022-02-17,11 SERVICES,TECHNOLOGY AND CIO,CLOUDREACH EUROPE LIMITED,464966,3358.48,978187168
BEIS,Met Office,2022-02-21,13 MISCELLANEOUS,SCIENCE,University Of Reading,464968,333.34,200012659
BEIS,Met Office,2022-02-17,06 ACCOMMODATION,CHIEF FINANCIAL OFFICER,SHETLAND CLEANING SERVICES,464969,739.97,430028404
BEIS,Met Office,2022-02-17,11 SERVICES,PROGRAMMES,HOGAN LOVELLS INTERNATIONAL LLP,464970,16204.27,GB123371543
BEIS,Met Office,2022-02-17,11 SERVICES,PROGRAMMES,HOGAN LOVELLS INTERNATIONAL LLP,464971,11131,GB123371543
BEIS,Met Office,2022-02-18,11 SERVICES,CHIEF FINANCIAL OFFICER,BT GLOBAL SERVICES,464973,7818.19,245719348
BEIS,Met Office,2022-02-17,11 SERVICES,PROGRAMMES,HOGAN LOVELLS INTERNATIONAL LLP,464974,5551,GB123371543
BEIS,Met Office,2022-02-17,11 SERVICES,CHIEF FINANCIAL OFFICER,ALLSTAR BUSINESS SOLUTIONS LTD,464975,2779.79,747880191
BEIS,Met Office,2022-02-21,03 STAFF COSTS T&S,SERVICES,CHARLIE'S TRAVEL LTD,464976,202.46,783848277
BEIS,Met Office,2022-02-17,06 ACCOMMODATION,CHIEF FINANCIAL OFFICER,South West Water Ltd,464977,84.11,236873674
BEIS,Met Office,2022-02-17,11 SERVICES,PROGRAMMES,HOGAN LOVELLS INTERNATIONAL LLP,464979,335535.63,GB123371543
BEIS,Met Office,2022-02-21,04 CONTRACTORS,PEOPLE,MATRIX SCM LIMITED,464982,293141.92,249 5734 68
BEIS,Met Office,2022-02-18,11 SERVICES,CHIEF FINANCIAL OFFICER,Morton Fraser LLP,464985,137.5,269129336
BEIS,Met Office,2022-02-21,11 SERVICES,SCIENCE,ESCOTT HUNT LTD,464986,900,815727127
BEIS,Met Office,2022-02-21,11 SERVICES,PEOPLE,MOMENTUM INCORPORATED,464987,12800,598958541
BEIS,Met Office,2022-02-17,11 SERVICES,MARKETS,MOMENTUM INCORPORATED,464988,6660,598958541
BEIS,Met Office,2022-02-18,06 ACCOMMODATION,CHIEF FINANCIAL OFFICER,DEPARTMENT OF FINANCE AND PERSONNEL,464989,101,888808059
BEIS,Met Office,2022-02-17,06 ACCOMMODATION,CHIEF FINANCIAL OFFICER,CALOR GAS LIMITED,464991,1482.86,207610984
BEIS,Met Office,2022-02-17,03 STAFF COSTS T&S,CHIEF FINANCIAL OFFICER,ENTERPRISE RENT A CAR UK LTD,465007,75,215557314
BEIS,Met Office,2022-02-22,06 ACCOMMODATION,CHIEF FINANCIAL OFFICER,D&G OFFICE SERVICES LTD,465046,260,272997547
BEIS,Met Office,2022-02-22,08 SOFTWARE LICENCES,SERVICES,MERKLE UK THREE LTD T/A MERKLE PERISCOPIX,465047,99780,843316243
BEIS,Met Office,2022-02-21,11 SERVICES,PEOPLE,RIVER TRAINING AND HR,465050,800,-
BEIS,Met Office,2022-02-21,03 STAFF COSTS T&S,SERVICES,FALKLAND ISLAND COMPANY LTD,465051,700,N/A
BEIS,Met Office,2022-02-21,03 STAFF COSTS T&S,SERVICES,FALKLAND ISLAND COMPANY LTD,465053,700,N/A
BEIS,Met Office,2022-02-21,03 STAFF COSTS T&S,SERVICES,FALKLAND ISLAND COMPANY LTD,465054,700,N/A
BEIS,Met Office,2022-02-24,FIXTURE & FITTINGS,CHIEF FINANCIAL OFFICER,FMS INTERIOR SERVICES LTD,465055,7320,922056940
BEIS,Met Office,2022-02-23,11 SERVICES,MARKETS,ULTRA ELECTRONICS LTD NUCLEAR CONTROL SYSTEMS,465056,232304.62,123340754
BEIS,Met Office,2022-02-23,11 SERVICES,MARKETS,ULTRA ELECTRONICS LTD NUCLEAR CONTROL SYSTEMS,465057,1770.76,123340754
BEIS,Met Office,2022-02-23,11 SERVICES,MARKETS,ULTRA ELECTRONICS LTD NUCLEAR CONTROL SYSTEMS,465057,8152.91,123340754
BEIS,Met Office,2022-02-21,08 SOFTWARE LICENCES,CHIEF FINANCIAL OFFICER,CEMAR,465059,135,915042161
BEIS,Met Office,2022-02-21,07 EQUIPMENT,SERVICES,Hydrosphere Uk Limited,465060,60,641275549
BEIS,Met Office,2022-02-21,11 SERVICES,PEOPLE,CIVICA UK LIMITED,465061,7162.66,391171065
BEIS,Met Office,2022-02-24,13 MISCELLANEOUS,SCIENCE,JOHN WILEY & SONS LTD,465084,880,376766987
BEIS,Met Office,2022-02-22,13 MISCELLANEOUS,SERVICES,Royal Meteorological Society,465085,96,-
BEIS,Met Office,2022-02-24,06 ACCOMMODATION,CHIEF FINANCIAL OFFICER,ST MODWEN VENTURES LTD,465086,16.7,975081008
BEIS,Met Office,2022-02-23,11 SERVICES,SERVICES,UK TELEMATICS LIMITED,465087,335.52,GB763051643
BEIS,Met Office,2022-02-23,11 SERVICES,SERVICES,APPLIED SATELLITE TECHNOLOGY SYSTEMS LTD,465088,7910.49,720108683
BEIS,Met Office,2022-02-23,12 INTERNATIONAL,MARKETS,APPLIED SATELLITE TECHNOLOGY SYSTEMS LTD,465089,31.38,720108683
BEIS,Met Office,2022-02-24,11 SERVICES,SERVICES,APPLIED SATELLITE TECHNOLOGY SYSTEMS LTD,465090,287.18,720108683
BEIS,Met Office,2022-02-22,11 SERVICES,PROGRAMMES,FCDO,465092,551.21,888813560
BEIS,Met Office,2022-02-24,11 SERVICES,SERVICES,APPLIED SATELLITE TECHNOLOGY SYSTEMS LTD,465093,130.18,720108683
BEIS,Met Office,2022-02-24,11 SERVICES,SERVICES,APPLIED SATELLITE TECHNOLOGY SYSTEMS LTD,465094,62.91,720108683
BEIS,Met Office,2022-02-24,11 SERVICES,SERVICES,APPLIED SATELLITE TECHNOLOGY SYSTEMS LTD,465095,62.76,720108683
BEIS,Met Office,2022-02-24,11 SERVICES,SERVICES,APPLIED SATELLITE TECHNOLOGY SYSTEMS LTD,465096,31.38,720108683
BEIS,Met Office,2022-02-22,06 ACCOMMODATION,CHIEF FINANCIAL OFFICER,GRS BUILDING SERVICES SOUTH-WEST,465097,2558.92,-
BEIS,Met Office,2022-02-22,03 STAFF COSTS T&S,CHIEF FINANCIAL OFFICER,ENTERPRISE RENT A CAR UK LTD,465098,2230.2,215557314
BEIS,Met Office,2022-02-23,11 SERVICES,MARKETS,SOCIAL SENSING LTD,465099,2758,-
BEIS,Met Office,2022-02-22,11 SERVICES,MARKETS,SOCIAL SENSING LTD,465100,4000,-
BEIS,Met Office,2022-02-23,06 ACCOMMODATION,CHIEF FINANCIAL OFFICER,Biffa Waste Services Ltd,465101,606.97,537911627
BEIS,Met Office,2022-02-24,06 ACCOMMODATION,CHIEF FINANCIAL OFFICER,Biffa Waste Services Ltd,465102,492,537911627
BEIS,Met Office,2022-02-23,06 ACCOMMODATION,CHIEF FINANCIAL OFFICER,Biffa Waste Services Ltd,465103,67.47,537911627
BEIS,Met Office,2022-02-23,06 ACCOMMODATION,CHIEF FINANCIAL OFFICER,Biffa Waste Services Ltd,465104,74.1,537911627
BEIS,Met Office,2022-02-23,06 ACCOMMODATION,CHIEF FINANCIAL OFFICER,Biffa Waste Services Ltd,465105,405.86,537911627
BEIS,Met Office,2022-02-23,06 ACCOMMODATION,CHIEF FINANCIAL OFFICER,Biffa Waste Services Ltd,465106,582.53,537911627
BEIS,Met Office,2022-02-23,06 ACCOMMODATION,CHIEF FINANCIAL OFFICER,Biffa Waste Services Ltd,465107,312.65,537911627
BEIS,Met Office,2022-02-23,06 ACCOMMODATION,CHIEF FINANCIAL OFFICER,Biffa Waste Services Ltd,465108,616.98,537911627
BEIS,Met Office,2022-02-24,TRADE CREDITORS,OTHER,NATWEST COMMERCIAL CARDS DIVISION,465109,160381.88,N/A
BEIS,Met Office,2022-02-24,07 EQUIPMENT,CHIEF FINANCIAL OFFICER,NATWEST COMMERCIAL CARDS DIVISION,465110,6668.63,N/A
BEIS,Met Office,2022-02-28,11 SERVICES,PEOPLE,EDENRED - CHILDCARE VOUCHERS,465111,-1,649 503 520
BEIS,Met Office,2022-02-23,06 ACCOMMODATION,CHIEF FINANCIAL OFFICER,Biffa Waste Services Ltd,465112,105.3,537911627
BEIS,Met Office,2022-02-23,11 SERVICES,MARKETS,READACTED PERSONAL DATA,465113,720,-
BEIS,Met Office,2022-02-23,11 SERVICES,MARKETS,DBS FINANCE RECEIPTS CTS,465116,14318.41,888805068
BEIS,Met Office,2022-02-24,11 SERVICES,PROGRAMMES,UK ATOMIC ENERGY AUTHORITY,465119,143750,GB570101391
BEIS,Met Office,2022-02-24,11 SERVICES,PROGRAMMES,UK ATOMIC ENERGY AUTHORITY,465120,67000,GB570101391
BEIS,Met Office,2022-02-24,11 SERVICES,PROGRAMMES,UK ATOMIC ENERGY AUTHORITY,465121,97500,GB570101391
BEIS,Met Office,2022-02-23,08 SOFTWARE LICENCES,CHIEF FINANCIAL OFFICER,CEMAR,465122,90,915042161
BEIS,Met Office,2022-02-23,10 EQUIPMENT MAINTENANCE,SERVICES,YOUNG CALIBRATION LIMITED,465123,1575,673900720
BEIS,Met Office,2022-02-23,11 SERVICES,SERVICES,YOUNG CALIBRATION LIMITED,465123,15,673900720
BEIS,Met Office,2022-02-28,07 EQUIPMENT,SERVICES,ROHDE & SCHWARZ UK LTD,465124,1603,215945163
BEIS,Met Office,2022-02-23,06 ACCOMMODATION,CHIEF FINANCIAL OFFICER,BIDVEST NOONAN UK LTD,465125,395.68,GB847176988
BEIS,Met Office,2022-02-25,11 SERVICES,PROGRAMMES,SOCIAL & LOCAL,465127,13666.25,126 9600 12
BEIS,Met Office,2022-02-23,13 MISCELLANEOUS,CHIEF FINANCIAL OFFICER,CANON UK LTD,465128,150,523797128
BEIS,Met Office,2022-02-23,06 ACCOMMODATION,CHIEF FINANCIAL OFFICER,BIDVEST NOONAN UK LTD,465129,890.6,GB847176988
BEIS,Met Office,2022-02-25,11 SERVICES,MARKETS,National Oceanography Centre,465130,3850.5,GB 338 5487 64
BEIS,Met Office,2022-02-24,11 SERVICES,MARKETS,CENTRO INTERNACIONAL MEJORAMIENTO DE MAIZ Y T,465154,4779,CIM890330FI8
BEIS,Met Office,2022-02-28,13 MISCELLANEOUS,PROGRAMMES,JOHN WILEY & SONS LTD,465155,2000,376766987
BEIS,Met Office,2022-02-24,11 SERVICES,CHIEF FINANCIAL OFFICER,BT GLOBAL SERVICES,465156,12111.67,245719348
BEIS,Met Office,2022-02-24,06 ACCOMMODATION,CHIEF FINANCIAL OFFICER,South West Water Ltd,465157,35.83,236873674
BEIS,Met Office,2022-02-28,11 SERVICES,TECHNOLOGY AND CIO,BOXXE,465158,968,734245248
BEIS,Met Office,2022-02-28,08 SOFTWARE LICENCES,TECHNOLOGY AND CIO,LOOP1 UK LIMITED,465161,3903.55,02631536
BEIS,Met Office,2022-02-28,06 ACCOMMODATION,CHIEF FINANCIAL OFFICER,CBRE MANAGED SERVICES LTD,465162,2875.24,853936883
BEIS,Met Office,2022-02-28,06 ACCOMMODATION,CHIEF FINANCIAL OFFICER,DALCOUR MACLAREN LTD,465163,1500,823 6484 20
BEIS,Met Office,2022-02-28,11 SERVICES,TECHNOLOGY AND CIO,AMAZON WEB SERVICES UK LTD,465164,8340,170 4318 31
BEIS,Met Office,2022-02-28,PLANT AND EQUIPMENT,SERVICES,EQUINOX INSTRUMENTS LTD,465165,3200,865954274
BEIS,Met Office,2022-02-28,PLANT AND EQUIPMENT,SERVICES,EQUINOX INSTRUMENTS LTD,465165,76300,865954274
BEIS,Met Office,2022-02-28,06 ACCOMMODATION,CHIEF FINANCIAL OFFICER,CBRE MANAGED SERVICES LTD,465166,144085.3,853936883
BEIS,Met Office,2022-02-25,06 ACCOMMODATION,CHIEF FINANCIAL OFFICER,CBRE MANAGED SERVICES LTD,465180,28667.32,853936883
BEIS,Met Office,2022-02-25,06 ACCOMMODATION,CHIEF FINANCIAL OFFICER,CBRE MANAGED SERVICES LTD,465181,13788.48,853936883
BEIS,Met Office,2022-02-24,PLANT AND EQUIPMENT,CHIEF FINANCIAL OFFICER,CBRE MANAGED SERVICES LTD,465182,159578.41,853936883
BEIS,Met Office,2022-02-24,13 MISCELLANEOUS,CHIEF FINANCIAL OFFICER,CANON UK LTD,465183,2106.58,523797128
BEIS,Met Office,2022-02-24,13 MISCELLANEOUS,CHIEF FINANCIAL OFFICER,CANON UK LTD,465183,89.74,523797128
BEIS,Met Office,2022-02-24,13 MISCELLANEOUS,CHIEF FINANCIAL OFFICER,CANON UK LTD,465183,26.92,523797128
BEIS,Met Office,2022-02-24,13 MISCELLANEOUS,CHIEF FINANCIAL OFFICER,CANON UK LTD,465183,15.52,523797128
BEIS,Met Office,2022-02-24,13 MISCELLANEOUS,CHIEF FINANCIAL OFFICER,CANON UK LTD,465183,405.28,523797128
BEIS,Met Office,2022-02-24,13 MISCELLANEOUS,CHIEF FINANCIAL OFFICER,CANON UK LTD,465183,269.22,523797128
BEIS,Met Office,2022-02-24,13 MISCELLANEOUS,CHIEF FINANCIAL OFFICER,CANON UK LTD,465183,202.64,523797128
BEIS,Met Office,2022-02-24,13 MISCELLANEOUS,CHIEF FINANCIAL OFFICER,CANON UK LTD,465183,7.64,523797128
BEIS,Met Office,2022-02-24,13 MISCELLANEOUS,CHIEF FINANCIAL OFFICER,CANON UK LTD,465183,23.16,523797128
BEIS,Met Office,2022-02-28,04 CONTRACTORS,PEOPLE,MATRIX SCM LIMITED,465208,259693.12,249 5734 68
BEIS,Met Office,2022-02-25,11 SERVICES,CHIEF FINANCIAL OFFICER,BT plc,465209,876.22,245719348
BEIS,Met Office,2022-02-25,06 ACCOMMODATION,CHIEF FINANCIAL OFFICER,GVAV LIMITED,465210,2230,770015070
BEIS,Met Office,2022-02-25,11 SERVICES,MARKETS,BEIS,465212,502860,888825550
BEIS,Met Office,2022-02-25,13 MISCELLANEOUS,SCIENCE,BOB'S MACHINE SHOP,465215,600,-
BEIS,Met Office,2022-02-25,13 MISCELLANEOUS,SCIENCE,BOB'S MACHINE SHOP,465215,40,-
BEIS,Met Office,2022-02-25,11 SERVICES,SERVICES,VOLKSWAGEN GROUP LEASING,465216,4142.14,BG745963883
BEIS,Met Office,2022-02-28,11 SERVICES,CHIEF FINANCIAL OFFICER,CABINET OFFICE - COF LEAD ACCOUNT,465223,126881.25,-
BEIS,Met Office,2022-02-28,11 SERVICES,PROGRAMMES,FCDO,465225,2086.91,888813560
BEIS,Met Office,2022-02-28,06 ACCOMMODATION,CHIEF FINANCIAL OFFICER,MACC DEVELOPMENTS LTD,465226,1000,134669201
BEIS,Met Office,2022-02-28,06 ACCOMMODATION,CHIEF FINANCIAL OFFICER,CBRE MANAGED SERVICES LTD,465229,-144085.3,853936883
BEIS,Met Office,2022-02-25,06 ACCOMMODATION,CHIEF FINANCIAL OFFICER,CBRE MANAGED SERVICES LTD,465230,144085.3,853936883
BEIS,Met Office,2022-02-28,11 SERVICES,CHIEF FINANCIAL OFFICER,TELEFONICA O2 UK LIMITED,465240,50.14,778603785
BEIS,Met Office,2022-02-28,11 SERVICES,PEOPLE,THE STRENGTHS PEOPLE LTD,465242,2100,206868488
BEIS,Met Office,2022-02-28,11 SERVICES,PEOPLE,EDENRED - CHILDCARE VOUCHERS,465272,12560,649 503 520
BEIS,Met Office,2022-02-28,11 SERVICES,TECHNOLOGY AND CIO,Microsoft Ltd,465278,82915,724594615
BEIS,Met Office,2022-02-28,06 ACCOMMODATION,CHIEF FINANCIAL OFFICER,ST MODWEN VENTURES LTD,465281,862.5,975081008
